[Event "CZE-ch Open 2019"]
[Site "Ostrava"]
[Date "2019.05.04"]
[Round "8.12"]
[White "Babula, Milan"]
[Black "Roubalik, Jakub"]
[Result "0-1"]
[ECO "B53"]
[WhiteElo "2208"]
[BlackElo "2420"]
[Annotator "RC"]
[PlyCount "128"]
[EventDate "2019.04.27"]
[EventType "swiss"]
[EventCountry "CZE"]
[SourceTitle "playchess.com"]
[Source "ChessBase"]
[SourceQuality "1"]
[TimeControl "40/5400+30:1800+30"]

1. e4 {[%emt 0:00:00]} c5 {[%emt 0:00:00]} 2. Nf3 {[%emt 0:00:00]} d6 {[%emt 0:00:00]} 3. d4 {[%emt 0:00:00]} cxd4 {[%emt 0:00:00]} 4. Qxd4 {[%emt 0:00:00]} Nc6 {[%emt 0:00:00]} 5. Bb5 {[%emt 0:00:00]} Bd7 {[%emt 0:00:00]} 6. Bxc6 {[%emt 0:00:00]} Bxc6 {[%emt 0:00:00]} 7. c4 {[%emt 0:00:06]} Nf6 {[%emt 0:00:06]} 8. Nc3 {[%emt 0:00:05]} g6 {[%emt 0:00:08]} 9. O-O {[%emt 0:02:59]} Bg7 {[%emt 0:00:14]} 10. Qd3 {[%emt 0:02:48]} O-O {[%emt 0:00:33]} 11. Nd4 {[%emt 0:00:19]} Nd7 {[%emt 0:02:32]} 12. Be3 {[%emt 0:10:05]} Rc8 {[%emt 0:09:13]} 13. b3 {[%emt 0:11:30]} a6 {[%emt 0:03:55]} 14. Nxc6 {[%emt 0:07:20]} Rxc6 {[%emt 0:08:38]} 15. Rac1 {[%emt 0:04:59]} Nc5 {[%emt 0:09:32]} 16. Bxc5 {[%emt 0:14:20]} Rxc5 {[%emt 0:01:31]} 17. a4 {[%emt 0:01:02]} e6 {[%emt 0:06:08]} 18. Rfd1 {[%emt 0:01:50]} Rc6 {[%emt 0:00:13]} 19. Ne2 {[%emt 0:01:11]} Qa5 {[%emt 0:03:26]} 20. Nd4 {[%emt 0:03:37]} Rcc8 {[%emt 0:00:41]} 21. Ne2 {[%emt 0:10:41]} Rfd8 {[%emt 0:00:36]} 22. g3 {[%emt 0:00:06]} Qb4 {[%emt 0:04:38]} 23. Rb1 {[%emt 0:01:01]} Bf6 {[%emt 0:06:22]} 24. Qd2 {[%emt 0:00:57]} Qc5 {[%emt 0:01:14]} 25. Qd3 {[%emt 0:03:06]} h5 {[%emt 0:02:35]} 26. Qf3 {[%emt 0:02:34]} Kg7 {[%emt 0:02:01]} 27. h4 {[%emt 0:01:25]} b5 {[%emt 0:08:09]} 28. cxb5 {[%emt 0:03:37]} axb5 {[%emt 0:00:06]} 29. b4 {[%emt 0:00:13]} Qe5 {[%emt 0:01:05]} 30. axb5 {[%emt 0:01:56]} Qxb5 {[%emt 0:00:38]} 31. Qd3 {[%emt 0:07:58]} Rc4 {[%emt 0:02:49]} 32. Rdc1 {[%emt 0:00:30]} d5 {[%emt 0:02:11]} 33. exd5 {[%emt 0:01:30]} exd5 {[%emt 0:00:35]} 34. Nc3 {[%emt 0:01:53]} Qc6 {[%emt 0:02:07]} 35. b5 {[%emt 0:00:25]} Qc5 {[%emt 0:01:15]} 36. Ne2 {[%emt 0:00:41]} Rb8 {[%emt 0:02:02]} 37. b6 {[%emt 0:04:42]} Rxb6 {[%emt 0:00:17]} 38. Rxb6 {[%emt 0:02:17]} Rxc1+ {[%emt 0:00:08]} 39. Nxc1 Qxb6 {[%emt 0:00:07]} 40. Ne2 {[%emt 0:00:30]} Qc5 {[%emt 0:03:34]} 41. Kg2 {[%emt 0:05:17]} Be5 {[%emt 0:03:49]} 42. Qd1 {[%emt 0:03:15]} Qc4 {[%emt 0:02:02]} 43. Ng1 {[%emt 0:08:40]} Bf6 {[%emt 0:13:05]} 44. Nf3 {[%emt 0:00:52]} Qe4 {[%emt 0:01:24]} 45. Kg1 {[%emt 0:00:43]} Bc3 {[%emt 0:09:43]} 46. Ng5 {[%emt 0:00:37]} Qe1+ {[%emt 0:02:18]} 47. Qxe1 {[%emt 0:00:03]} Bxe1 {[%emt 0:00:02]} 48. Kf1 {[%emt 0:01:14]} Bd2 {[%emt 0:00:28]} 49. Nf3 {[%emt 0:00:07]} Bc3 {[%emt 0:00:03]} 50. Ke2 {[%emt 0:02:51]} Kf6 {[%emt 0:00:12]} 51. Ng5 {[%emt 0:00:57]} Ke7 {[%emt 0:00:21]} 52. Kd3 {[%emt 0:00:45]} Bf6 {[%emt 0:01:03]} 53. Nf3 {[%emt 0:02:22]} Ke6 {[%emt 0:00:40]} 54. Ne1 {[%emt 0:00:58]} Kf5 {[%emt 0:02:50]} 55. Ke2 {[%emt 0:00:02]} Be7 {[%emt 0:03:03]} 56. Kf3 {[%emt 0:01:18]} f6 {[%emt 0:01:07]} 57. Nd3 {[%emt 0:00:37]} Bd6 {[%emt 0:00:17]} 58. Ke3 {[%emt 0:00:44]} Kg4 {[%emt 0:01:45]} 59. Kd4 {[%emt 0:01:27]} Bxg3 {[%emt 0:00:36]} 60. fxg3 {[%emt 0:00:01]} Kxg3 {[%emt 0:00:02]} 61. Kxd5 {[%emt 0:00:01]} Kxh4 {[%emt 0:00:14]} 62. Ke4 {[%emt 0:03:38]} Kg3 {[%emt 0:00:58]} 63. Nf4 {[%emt 0:01:27]} h4 {[%emt 0:00:09]} 64. Nxg6 {[%emt 0:02:29]} h3 {[%emt 0:00:04]} 0-1

[Event "CZE-ch Open 2019"]
[Site "Ostrava"]
[Date "2019.05.04"]
[Round "8.13"]
[White "Riha, Vojtech"]
[Black "Jasny, Stanislav"]
[Result "1-0"]
[ECO "B06"]
[WhiteElo "2216"]
[BlackElo "2351"]
[Annotator "NA"]
[PlyCount "73"]
[EventDate "2019.04.27"]
[EventType "swiss"]
[EventCountry "CZE"]
[SourceTitle "playchess.com"]
[Source "ChessBase"]
[SourceQuality "1"]
[TimeControl "40/5400+30:1800+30"]

1. e4 {[%emt 0:00:00]} g6 {[%emt 0:00:00]} 2. d4 {[%emt 0:00:00]} Bg7 {[%emt 0:00:07]} 3. Nc3 {[%emt 0:00:53]} d6 {[%emt 0:00:09]} 4. f4 {[%emt 0:01:19]} a6 {[%emt 0:00:54]} 5. Nf3 {[%emt 0:00:22]} b5 {[%emt 0:00:16]} 6. Bd3 {[%emt 0:01:34]} Nd7 {[%emt 0:00:48]} 7. a4 {[%emt 0:00:41]} b4 {[%emt 0:00:23]} 8. Ne2 {[%emt 0:00:08]} c5 {[%emt 0:01:24]} 9. c3 {[%emt 0:00:55]} bxc3 {[%emt 0:12:22]} 10. bxc3 {[%emt 0:00:06]} Ngf6 {[%emt 0:00:13]} 11. e5 {[%emt 0:03:46]} Nd5 {[%emt 0:11:55]} 12. Ng5 {[%emt 0:07:37]} Nc7 {[%emt 0:04:57]} 13. O-O {[%emt 0:07:48]} O-O {[%emt 0:07:12]} 14. Qe1 {[%emt 0:19:17]} f5 {[%emt 0:09:54]} 15. g4 {[%emt 0:13:04]} h6 {[%emt 0:08:26]} 16. gxf5 {[%emt 0:01:47]} gxf5 {[%emt 0:00:22]} 17. Ng3 {[%emt 0:11:55]} hxg5 {[%emt 0:05:45]} 18. Nxf5 {[%emt 0:04:56]} Rxf5 {[%emt 0:00:44]} 19. Bxf5 {[%emt 0:00:08]} Nf8 {[%emt 0:00:12]} 20. Bc2 {[%emt 0:01:40]} cxd4 {[%emt 0:06:26]} 21. fxg5 {[%emt 0:01:09]} dxe5 {[%emt 0:04:33]} 22. Qe4 {[%emt 0:10:24]} Be6 {[%emt 0:07:11]} 23. Ba3 {[%emt 0:02:24]} Nd5 {[%emt 0:04:32]} 24. Rxf8+ {[%emt 0:06:44]} Kxf8 {[%emt 0:00:07]} 25. Rf1+ {[%emt 0:00:07]} Ke8 {[%emt 0:06:51]} 26. Qg6+ {[%emt 0:00:14]} Kd7 {[%emt 0:00:11]} 27. Qxg7 {[%emt 0:00:36]} Qb6 {[%emt 0:01:56]} 28. Be4 {[%emt 0:02:52]} d3+ {[%emt 0:02:12]} 29. Kh1 {[%emt 0:00:16]} Qe3 {[%emt 0:01:09]} 30. Qh7 {[%emt 0:01:43]} d2 {[%emt 0:02:45]} 31. Bxe7 {[%emt 0:00:33]} Nxe7 {[%emt 0:00:55]} 32. Bxa8 Qe2 {[%emt 0:00:08]} 33. Qb1 {[%emt 0:00:49]} Bb3 {[%emt 0:00:50]} 34. Bf3 {[%emt 0:00:37]} Qxf3+ {[%emt 0:00:39]} 35. Rxf3 {[%emt 0:00:07]} d1=Q+ {[%emt 0:00:10]} 36. Qxd1+ {[%emt 0:00:02]} Bxd1 {[%emt 0:00:13]} 37. Rd3+ {[%emt 0:00:03]} 1-0

[Event "CZE-ch Open 2019"]
[Site "Ostrava"]
[Date "2019.05.04"]
[Round "8.15"]
[White "Nguyen, Thai Dai Van"]
[Black "Ockay, Tomas"]
[Result "1-0"]
[ECO "B12"]
[WhiteElo "2548"]
[BlackElo "2139"]
[Annotator "ChessBase"]
[PlyCount "69"]
[EventDate "2019.04.27"]
[EventType "swiss"]
[EventCountry "CZE"]
[SourceTitle "playchess.com"]
[Source "ChessBase"]
[SourceQuality "1"]
[TimeControl "40/5400+30:1800+30"]

1. e4 {[%emt 0:00:00]} c6 {[%emt 0:00:00]} 2. d4 {[%emt 0:00:00]} d5 {[%emt 0:00:00]} 3. e5 {[%emt 0:00:00]} Bf5 {[%emt 0:00:00]} 4. Nf3 {[%emt 0:00:00]} e6 {[%emt 0:00:18]} 5. Be2 {[%emt 0:00:00]} h6 {[%emt 0:00:35]} 6. O-O {[%emt 0:00:21]} Nd7 {[%emt 0:01:40]} 7. Nbd2 {[%emt 0:00:38]} Ne7 {[%emt 0:02:41]} 8. Nb3 {[%emt 0:00:31]} g5 {[%emt 0:02:57]} 9. a4 {[%emt 0:00:21]} Bg6 {[%emt 0:01:01]} 10. a5 {[%emt 0:03:02]} Nf5 {[%emt 0:03:35]} 11. Bd2 {[%emt 0:13:55]} Be7 {[%emt 0:00:35]} 12. Ne1 {[%emt 0:17:34]} O-O {[%emt 0:14:16]} 13. g3 {[%emt 0:15:45]} c5 {[%emt 0:08:10]} 14. c3 {[%emt 0:07:15]} c4 {[%emt 0:01:16]} 15. Nc1 {[%emt 0:00:05]} f6 {[%emt 0:02:31]} 16. exf6 {[%emt 0:00:43]} Nxf6 {[%emt 0:01:17]} 17. b3 {[%emt 0:05:40]} Rc8 {[%emt 0:00:44]} 18. Nf3 {[%emt 0:02:35]} Nd6 {[%emt 0:14:06]} 19. Ne5 {[%emt 0:00:54]} Be8 {[%emt 0:03:11]} 20. Qc2 {[%emt 0:08:18]} Kg7 {[%emt 0:03:53]} 21. bxc4 {[%emt 0:06:09]} Nxc4 {[%emt 0:01:08]} 22. Ncd3 {[%emt 0:02:26]} Nxd2 {[%emt 0:01:48]} 23. Qxd2 {[%emt 0:00:04]} Ne4 {[%emt 0:00:07]} 24. Qb2 {[%emt 0:00:15]} Nxc3 {[%emt 0:00:42]} 25. Bg4 {[%emt 0:01:30]} Rc7 {[%emt 0:12:10]} 26. Bxe6 {[%emt 0:03:08]} Rf6 {[%emt 0:05:58]} 27. Bh3 {[%emt 0:00:21]} Bb5 {[%emt 0:04:25]} 28. Rfc1 {[%emt 0:02:48]} Bxd3 {[%emt 0:00:12]} 29. Rxc3 {[%emt 0:01:21]} Bf5 {[%emt 0:05:35]} 30. Rxc7 {[%emt 0:03:09]} Qxc7 {[%emt 0:00:34]} 31. Bxf5 {[%emt 0:00:20]} Rxf5 {[%emt 0:00:06]} 32. Rc1 {[%emt 0:00:40]} Qb8 {[%emt 0:05:34]} 33. Qb1 {[%emt 0:00:40]} Qf8 {[%emt 0:02:10]} 34. Rc7 {[%emt 0:00:07]} Rxf2 {[%emt 0:01:30]} 35. Rxe7+ {[%emt 0:00:06]} 1-0

[Event "CZE-ch Open 2019"]
[Site "Ostrava"]
[Date "2019.05.04"]
[Round "8.16"]
[White "Vokac, Marek"]
[Black "Liska, Jiri"]
[Result "0-1"]
[ECO "A05"]
[WhiteElo "2343"]
[BlackElo "2239"]
[Annotator "NA"]
[PlyCount "82"]
[EventDate "2019.04.27"]
[EventType "swiss"]
[EventCountry "CZE"]
[SourceTitle "playchess.com"]
[Source "ChessBase"]
[SourceQuality "1"]
[TimeControl "40/5400+30:1800+30"]

1. Nf3 {[%emt 0:02:56]} Nf6 {[%emt 0:00:00]} 2. c4 {[%emt 0:00:07]} g6 {[%emt 0:01:07]} 3. Nc3 {[%emt 0:00:07]} Bg7 {[%emt 0:00:42]} 4. e4 {[%emt 0:00:32]} c5 {[%emt 0:00:40]} 5. d4 {[%emt 0:00:12]} cxd4 {[%emt 0:01:05]} 6. Nxd4 {[%emt 0:00:05]} d6 {[%emt 0:01:28]} 7. Be2 {[%emt 0:00:37]} Nc6 {[%emt 0:01:11]} 8. Nc2 {[%emt 0:00:22]} O-O {[%emt 0:01:06]} 9. O-O {[%emt 0:01:55]} Bd7 {[%emt 0:06:58]} 10. Bd2 {[%emt 0:18:02]} Rc8 {[%emt 0:05:21]} 11. b3 {[%emt 0:01:48]} a6 {[%emt 0:04:06]} 12. Rc1 {[%emt 0:01:02]} Ne5 {[%emt 0:15:10]} 13. f4 {[%emt 0:15:08]} Neg4 {[%emt 0:11:32]} 14. Kh1 {[%emt 0:00:11]} h5 {[%emt 0:18:33]} 15. h3 {[%emt 0:06:21]} Nh6 {[%emt 0:00:23]} 16. Ne3 {[%emt 0:06:06]} Bc6 {[%emt 0:01:51]} 17. Bf3 {[%emt 0:00:27]} b5 {[%emt 0:01:44]} 18. Qe1 {[%emt 0:13:11]} b4 {[%emt 0:06:27]} 19. Ncd5 {[%emt 0:02:49]} e6 {[%emt 0:01:13]} 20. Bxb4 {[%emt 0:07:03]} exd5 {[%emt 0:00:51]} 21. e5 {[%emt 0:00:28]} Ne8 {[%emt 0:08:03]} 22. cxd5 {[%emt 0:02:02]} Bb5 {[%emt 0:00:24]} 23. Nc4 {[%emt 0:04:29]} Nf5 {[%emt 0:01:45]} 24. Be4 {[%emt 0:01:31]} Nd4 {[%emt 0:03:26]} 25. Bd3 {[%emt 0:04:32]} dxe5 {[%emt 0:02:20]} 26. a4 {[%emt 0:01:24]} Nxb3 {[%emt 0:02:55]} 27. axb5 {[%emt 0:00:40]} Nxc1 {[%emt 0:00:08]} 28. Qxc1 {[%emt 0:01:25]} axb5 {[%emt 0:00:36]} 29. Bxf8 {[%emt 0:00:04]} bxc4 {[%emt 0:00:53]} 30. Be4 {[%emt 0:01:25]} Bxf8 {[%emt 0:00:55]} 31. fxe5 {[%emt 0:00:02]} Bg7 {[%emt 0:00:23]} 32. e6 {[%emt 0:04:03]} f5 {[%emt 0:00:52]} 33. Bf3 {[%emt 0:01:46]} Nd6 {[%emt 0:00:30]} 34. Qf4 {[%emt 0:01:27]} c3 {[%emt 0:00:34]} 35. Qg3 {[%emt 0:00:31]} Kh7 {[%emt 0:00:14]} 36. Re1 {[%emt 0:00:46]} Qe7 {[%emt 0:00:14]} 37. Rc1 {[%emt 0:00:32]} c2 {[%emt 0:00:46]} 38. Qf2 {[%emt 0:00:13]} Qc7 {[%emt 0:00:29]} 39. Qg3 {[%emt 0:01:07]} Bh6 {[%emt 0:01:05]} 40. Rxc2 {[%emt 0:01:17]} Qxc2 {[%emt 0:00:09]} 41. Qxd6 {[%emt 0:30:02]} Qc1+ {[%emt 0:30:31]} 0-1

[Event "CZE-ch Open 2019"]
[Site "Ostrava"]
[Date "2019.05.04"]
[Round "8.18"]
[White "Sramek, Vojtech"]
[Black "Zeman, Matyas"]
[Result "1/2-1/2"]
[ECO "C01"]
[WhiteElo "2260"]
[BlackElo "2248"]
[Annotator "NA"]
[PlyCount "62"]
[EventDate "2019.04.27"]
[EventType "swiss"]
[EventCountry "CZE"]
[SourceTitle "playchess.com"]
[Source "ChessBase"]
[SourceQuality "1"]
[TimeControl "40/5400+30:1800+30"]

1. e4 {[%emt 0:00:00]} e6 {[%emt 0:00:10]} 2. d4 {[%emt 0:00:00]} d5 {[%emt 0:00:06]} 3. exd5 {[%emt 0:00:18]} exd5 {[%emt 0:00:06]} 4. Nf3 {[%emt 0:00:05]} Nf6 {[%emt 0:01:06]} 5. Bd3 {[%emt 0:00:06]} Bd6 {[%emt 0:00:05]} 6. Qe2+ {[%emt 0:00:46]} Be6 {[%emt 0:00:05]} 7. Ng5 {[%emt 0:03:48]} Qe7 {[%emt 0:00:08]} 8. O-O {[%emt 0:02:23]} O-O {[%emt 0:01:05]} 9. Re1 {[%emt 0:03:13]} Re8 {[%emt 0:00:14]} 10. Nxe6 {[%emt 0:00:58]} Qxe6 {[%emt 0:02:41]} 11. Qxe6 {[%emt 0:01:27]} Rxe6 {[%emt 0:00:11]} 12. Rxe6 {[%emt 0:00:36]} fxe6 {[%emt 0:00:04]} 13. Nc3 {[%emt 0:10:03]} a6 {[%emt 0:11:09]} 14. Ne2 {[%emt 0:11:19]} Nc6 {[%emt 0:00:56]} 15. c3 {[%emt 0:01:40]} e5 {[%emt 0:00:24]} 16. Bg5 {[%emt 0:11:28]} exd4 {[%emt 0:00:36]} 17. Nxd4 {[%emt 0:01:06]} Nxd4 {[%emt 0:00:07]} 18. cxd4 {[%emt 0:00:04]} Re8 {[%emt 0:00:11]} 19. Bxf6 {[%emt 0:05:57]} gxf6 {[%emt 0:00:04]} 20. Kf1 {[%emt 0:00:45]} Kf7 {[%emt 0:05:13]} 21. Re1 {[%emt 0:00:30]} Rxe1+ {[%emt 0:00:06]} 22. Kxe1 {[%emt 0:00:03]} h6 {[%emt 0:00:27]} 23. g3 {[%emt 0:00:22]} Ke6 {[%emt 0:00:29]} 24. Ke2 {[%emt 0:00:10]} f5 {[%emt 0:00:36]} 25. b3 {[%emt 0:00:36]} a5 {[%emt 0:00:18]} 26. a4 {[%emt 0:00:44]} b6 {[%emt 0:00:04]} 27. h3 {[%emt 0:01:04]} c5 {[%emt 0:00:52]} 28. dxc5 {[%emt 0:00:13]} bxc5 {[%emt 0:00:04]} 29. f4 {[%emt 0:00:26]} Kf6 {[%emt 0:01:29]} 30. Kf3 {[%emt 0:00:09]} Be7 {[%emt 0:00:14]} 31. g4 {[%emt 0:00:38]} fxg4+ {[%emt 0:00:04] Ke4 Ke5+} 1/2-1/2

[Event "CZE-ch Open 2019"]
[Site "Ostrava"]
[Date "2019.05.04"]
[Round "8.19"]
[White "Freisler, Pavel"]
[Black "Worek, Joanna"]
[Result "0-1"]
[ECO "A04"]
[WhiteElo "2251"]
[BlackElo "2307"]
[Annotator "NA"]
[PlyCount "80"]
[EventDate "2019.04.27"]
[EventType "swiss"]
[EventCountry "CZE"]
[SourceTitle "playchess.com"]
[Source "ChessBase"]
[SourceQuality "1"]
[TimeControl "40/5400+30:1800+30"]

1. Nf3 {[%emt 0:00:00]} c5 {[%emt 0:00:00]} 2. b3 {[%emt 0:05:11]} d6 {[%emt 0:04:59]} 3. e3 {[%emt 0:08:26]} Nf6 {[%emt 0:01:06]} 4. Bb2 {[%emt 0:00:25]} g6 {[%emt 0:00:13]} 5. c4 {[%emt 0:06:47]} Bg7 {[%emt 0:00:07]} 6. Nc3 {[%emt 0:00:08]} O-O {[%emt 0:00:24]} 7. Be2 {[%emt 0:00:03]} b6 {[%emt 0:00:20]} 8. d4 {[%emt 0:02:21]} Nc6 {[%emt 0:04:16]} 9. d5 {[%emt 0:13:41]} Ne5 {[%emt 0:00:46]} 10. Nxe5 {[%emt 0:00:07]} dxe5 {[%emt 0:00:05]} 11. e4 {[%emt 0:00:03]} Ne8 {[%emt 0:00:49]} 12. Bc1 {[%emt 0:15:17]} Nd6 {[%emt 0:07:30]} 13. Be3 {[%emt 0:00:44]} f5 {[%emt 0:01:37]} 14. f3 {[%emt 0:00:12]} Bd7 {[%emt 0:02:52]} 15. Qd2 {[%emt 0:05:13]} Qe8 {[%emt 0:03:58]} 16. g4 {[%emt 0:02:14]} fxg4 {[%emt 0:02:49]} 17. fxg4 {[%emt 0:00:02]} Rf4 {[%emt 0:00:06]} 18. Bxf4 {[%emt 0:15:51]} exf4 {[%emt 0:00:05]} 19. e5 {[%emt 0:00:18]} Bxe5 {[%emt 0:00:19]} 20. O-O-O {[%emt 0:00:20]} Qf7 {[%emt 0:01:48]} 21. Bf3 {[%emt 0:00:54]} a6 {[%emt 0:07:14]} 22. Rhe1 {[%emt 0:02:52]} Bd4 {[%emt 0:00:18]} 23. Ne4 {[%emt 0:01:25]} b5 {[%emt 0:01:32]} 24. Nxd6 {[%emt 0:05:11]} exd6 {[%emt 0:00:06]} 25. Re4 {[%emt 0:00:04]} Be3 {[%emt 0:00:44]} 26. Rxe3 {[%emt 0:00:15]} fxe3 {[%emt 0:00:04]} 27. Qxe3 {[%emt 0:00:33]} Re8 {[%emt 0:00:09]} 28. Be4 {[%emt 0:05:53]} Bxg4 {[%emt 0:04:29]} 29. Re1 {[%emt 0:01:34]} Qf6 {[%emt 0:01:52]} 30. Qg3 {[%emt 0:02:04]} Rxe4 {[%emt 0:12:55]} 31. Rxe4 {[%emt 0:00:07]} Qa1+ {[%emt 0:00:03]} 32. Kd2 {[%emt 0:01:01]} Qxa2+ {[%emt 0:00:06]} 33. Ke3 {[%emt 0:00:17]} Qe2+ {[%emt 0:00:07]} 34. Kf4 {[%emt 0:00:18]} g5+ {[%emt 0:00:04]} 35. Kxg5 {[%emt 0:00:39]} Qxe4 {[%emt 0:00:07]} 36. Qxd6 {[%emt 0:01:38]} Qf5+ {[%emt 0:01:01]} 37. Kh4 {[%emt 0:00:04]} Qh5+ {[%emt 0:00:07]} 38. Kg3 {[%emt 0:00:07]} Qh3+ {[%emt 0:00:02]} 39. Kf2 {[%emt 0:00:16]} Qf3+ {[%emt 0:00:02]} 40. Kg1 {[%emt 0:01:08]} Qe3+ {[%emt 0:00:08]} 0-1

[Event "CZE-ch Open 2019"]
[Site "Ostrava"]
[Date "2019.05.04"]
[Round "8.21"]
[White "Jun, Rudolf Jr."]
[Black "Vesselovsky, Serguei"]
[Result "1/2-1/2"]
[ECO "B52"]
[WhiteElo "2150"]
[BlackElo "2333"]
[Annotator "NA"]
[PlyCount "64"]
[EventDate "2019.04.27"]
[EventType "swiss"]
[EventCountry "CZE"]
[SourceTitle "playchess.com"]
[Source "ChessBase"]
[SourceQuality "1"]
[TimeControl "40/5400+30:1800+30"]

1. e4 {[%emt 0:00:00]} c5 {[%emt 0:00:00]} 2. Nf3 {[%emt 0:00:00]} d6 {[%emt 0:00:00]} 3. Bb5+ {[%emt 0:00:06]} Bd7 {[%emt 0:03:15]} 4. Bxd7+ {[%emt 0:00:15]} Qxd7 {[%emt 0:00:06]} 5. c4 {[%emt 0:00:10]} Nf6 {[%emt 0:00:33]} 6. Nc3 {[%emt 0:01:30]} Nc6 {[%emt 0:00:07]} 7. O-O {[%emt 0:00:21]} g6 {[%emt 0:00:42]} 8. d4 {[%emt 0:04:48]} cxd4 {[%emt 0:00:12]} 9. Nxd4 {[%emt 0:00:09]} Bg7 {[%emt 0:00:06]} 10. Nde2 {[%emt 0:01:11]} Qe6 {[%emt 0:01:18]} 11. Nd5 {[%emt 0:03:03]} Qxe4 {[%emt 0:00:45]} 12. Nc7+ {[%emt 0:03:05]} Kd7 {[%emt 0:00:12]} 13. Nxa8 {[%emt 0:01:04]} Qxc4 {[%emt 0:00:12]} 14. Be3 {[%emt 0:05:52]} Rxa8 {[%emt 0:00:38]} 15. Nd4 {[%emt 0:17:51]} Nd5 {[%emt 0:21:30]} 16. b3 {[%emt 0:16:32]} Nxe3 {[%emt 0:09:30]} 17. fxe3 {[%emt 0:00:18]} Qd5 {[%emt 0:04:13]} 18. Nxc6 {[%emt 0:01:22]} bxc6 {[%emt 0:05:29]} 19. Qxd5 {[%emt 0:00:30]} cxd5 {[%emt 0:00:02]} 20. Rad1 {[%emt 0:00:27]} Ke6 {[%emt 0:00:50]} 21. Kf2 {[%emt 0:01:10]} f5 {[%emt 0:10:42]} 22. Rd2 {[%emt 0:05:02]} Rc8 {[%emt 0:07:12]} 23. Rfd1 {[%emt 0:00:14]} Rc5 {[%emt 0:00:21]} 24. Ke2 {[%emt 0:04:33]} a5 {[%emt 0:02:28]} 25. a3 {[%emt 0:01:31]} Be5 {[%emt 0:11:54]} 26. g3 {[%emt 0:04:33]} h5 {[%emt 0:00:39]} 27. Kf3 {[%emt 0:00:45]} Bg7 {[%emt 0:05:55]} 28. h4 {[%emt 0:03:09]} Be5 {[%emt 0:03:34]} 29. Kf2 {[%emt 0:02:23]} Bf6 {[%emt 0:04:54]} 30. Kf3 {[%emt 0:00:25]} Be5 {[%emt 0:01:18]} 31. Kf2 {[%emt 0:00:18]} Bg7 {[%emt 0:02:20]} 32. Kf3 {[%emt 0:01:18]} Ke5 {Ke4+} 1/2-1/2

[Event "CZE-ch Open 2019"]
[Site "Ostrava"]
[Date "2019.05.04"]
[Round "8.22"]
[White "Svanda, Ondrej"]
[Black "Jedlicka, Ales"]
[Result "0-1"]
[ECO "B94"]
[WhiteElo "2304"]
[BlackElo "2225"]
[Annotator "NA"]
[PlyCount "72"]
[EventDate "2019.04.27"]
[EventType "swiss"]
[EventCountry "CZE"]
[SourceTitle "playchess.com"]
[Source "ChessBase"]
[SourceQuality "1"]
[TimeControl "40/5400+30:1800+30"]

1. e4 {[%emt 0:00:00]} c5 {[%emt 0:00:00]} 2. Nf3 {[%emt 0:00:00]} d6 {[%emt 0:00:00]} 3. d4 {[%emt 0:00:00]} cxd4 {[%emt 0:00:09]} 4. Nxd4 {[%emt 0:00:00]} Nf6 {[%emt 0:00:15]} 5. Nc3 {[%emt 0:00:00]} a6 {[%emt 0:00:12]} 6. Bg5 {[%emt 0:00:06]} Nbd7 {[%emt 0:00:17]} 7. Qe2 {[%emt 0:00:15]} e6 {[%emt 0:00:33]} 8. f4 {[%emt 0:01:34]} Qc7 {[%emt 0:00:26]} 9. O-O-O {[%emt 0:00:13]} Be7 {[%emt 0:00:48]} 10. g4 {[%emt 0:03:22]} h6 {[%emt 0:03:27]} 11. Bh4 {[%emt 0:02:39]} b5 {[%emt 0:01:34]} 12. a3 {[%emt 0:04:23]} Bb7 {[%emt 0:00:35]} 13. Rg1 {[%emt 0:00:19]} O-O-O {[%emt 0:07:33]} 14. Bg2 {[%emt 0:17:32]} Nb6 {[%emt 0:09:21]} 15. Bf2 {[%emt 0:12:58]} d5 {[%emt 0:09:08]} 16. e5 {[%emt 0:07:17]} Nfd7 {[%emt 0:00:24]} 17. Kb1 {[%emt 0:03:24]} Nc4 {[%emt 0:02:42]} 18. Na2 {[%emt 0:03:21]} Nc5 {[%emt 0:01:41]} 19. Nb3 {[%emt 0:02:08]} Na4 {[%emt 0:02:46]} 20. Bd4 {[%emt 0:00:12]} Kb8 {[%emt 0:00:36]} 21. Rd3 Rc8 {[%emt 0:00:45]} 22. Rc1 {[%emt 0:07:00]} a5 {[%emt 0:09:11]} 23. Nd2 {[%emt 0:03:35]} b4 {[%emt 0:03:11]} 24. Rb3 {[%emt 0:06:05]} bxa3 {[%emt 0:05:28]} 25. Nxc4 {[%emt 0:09:50]} Qxc4 {[%emt 0:00:33]} 26. Qe3 {[%emt 0:00:05]} axb2 {[%emt 0:00:56]} 27. Bxb2 {[%emt 0:00:05]} Bc5 {[%emt 0:02:09]} 28. Qd2 {[%emt 0:00:43]} Nxb2 {[%emt 0:01:29]} 29. Kxb2 {[%emt 0:00:07]} Qd4+ {[%emt 0:05:17]} 30. Qxd4 {[%emt 0:00:14]} Bxd4+ {[%emt 0:00:07]} 31. Ka3 {[%emt 0:01:05]} Ka7 {[%emt 0:01:52]} 32. Bf1 {[%emt 0:02:15]} Bc6 {[%emt 0:01:51]} 33. Rd3 {[%emt 0:04:56]} Bc5+ {[%emt 0:00:18]} 34. Kb2 {[%emt 0:00:04]} Rb8+ {[%emt 0:00:22]} 35. Ka1 {[%emt 0:00:09]} Rb6 {[%emt 0:04:41]} 36. c4 {[%emt 0:01:08]} d4 {[%emt 0:02:44]} 0-1